fUST/lending_fUST_20250816
["ID","MTS","AMOUNT","RATE_DAILY","PERIOD"]
[379631641,1755351043144,-480.0,0.00021917,3]
[379631643,1755351043155,-1242.64,0.00021917,3]
[379631644,1755351043166,-447.3050888,0.00021917,3]
[379631647,1755351043175,-480.0,0.00021917,3]
[379631649,1755351043185,-461.65607098,0.00021917,3]
[379631651,1755351043195,-480.0,0.00021917,3]
[379631652,1755351043204,-870.72,0.00021917,3]
[379631654,1755351043214,-497.91,0.00021917,3]
[379631656,1755351043223,-774.72,0.00021917,3]
[379631659,1755351043233,-480.0,0.00021917,3]
[379631660,1755351043243,-589.87,0.00021917,3]
[379631662,1755351043253,-480.0,0.00021917,3]
[379631664,1755351043262,-480.0,0.00021917,3]
[379631666,1755351043271,-480.0,0.00021917,3]
[379631668,1755351043281,-480.0,0.00021917,3]
[379631670,1755351043291,-480.0,0.00021917,3]
[379631672,1755351043300,-761.29,0.00021917,3]
[379631674,1755351043310,-480.0,0.00021917,3]
[379631676,1755351043319,-480.0,0.00021917,3]
[379631678,1755351043328,-480.0,0.00021917,2]
[379631680,1755351043337,-462.07358749,0.00021917,3]
[379631682,1755351043347,-483.33,0.00021917,3]
[379631684,1755351043355,-480.0,0.00021917,3]
[379631686,1755351043365,-480.0,0.00021917,3]
[379631688,1755351043374,-480.0,0.00021917,3]
[379631690,1755351043383,-460.0,0.00021917,3]
[379631692,1755351043392,-511.57,0.00021917,3]
[379631694,1755351043401,-480.0,0.00021917,3]
[379631696,1755351043411,-460.0,0.00021917,3]
[379631698,1755351043419,-480.0,0.00021917,3]
[379631700,1755351043429,-3495.24,0.00021917,3]
[379631702,1755351043439,-10890.08,0.00021917,3]
[379631704,1755351043451,-1742.84,0.00021917,3]
[379631706,1755351043460,-2350.77,0.00021917,3]
[379631708,1755351043469,-1195.77,0.00021917,3]
[379631710,1755351043478,-1810.3,0.00021917,3]
[379631712,1755351043488,-480.0,0.00021917,3]
[379631714,1755351043497,-1258.29,0.00021917,3]
[379631716,1755351043506,-480.0,0.00021917,3]
[379631718,1755351043516,-480.0,0.00021917,3]
[379631720,1755351043525,-1195.8,0.00021917,3]
[379631722,1755351043534,-460.0,0.00021917,3]
[379631724,1755351043544,-480.0,0.00021917,3]
[379631726,1755351043554,-480.0,0.00021917,3]
[379631728,1755351043564,-480.0,0.00021917,3]
[379631730,1755351043574,-380.0,0.00021917,3]
[379631732,1755351043584,-480.0,0.00021917,3]
[379631734,1755351043593,-465.71822067,0.00021917,3]
[379631736,1755351043603,-1318.54,0.00021917,3]
[379631738,1755351043613,-683.96,0.00021917,3]
[379631740,1755351043622,-460.0,0.00021917,3]
[379631742,1755351043632,-480.0,0.00021917,3]
[379631744,1755351043641,-460.0,0.00021917,3]
[379631746,1755351043650,-480.0,0.00021917,3]
[379631748,1755351043660,-460.0,0.00021917,3]
[379631750,1755351043669,-480.0,0.00021917,3]
[379631752,1755351043679,-574.94,0.00021917,3]
[379631754,1755351043688,-480.0,0.00021917,3]
[379631756,1755351043697,-460.0,0.00021917,3]
[379631758,1755351043706,-480.0,0.00021917,3]
[379631760,1755351043715,-1861.84,0.00021917,3]
[379631762,1755351043724,-480.0,0.00021917,3]
[379631764,1755351043734,-480.0,0.00021917,3]
[379631766,1755351043744,-460.68890505,0.00021917,3]
[379631768,1755351043753,-1582.27,0.00021917,3]
[379631770,1755351043761,-380.0,0.00021917,3]
[379631771,1755351043770,-480.0,0.00021917,3]
[379631773,1755351043779,-480.0,0.00021917,3]
[379631775,1755351043788,-480.0,0.00021917,3]
[379631777,1755351043797,-1269.57,0.00021917,3]
[379631779,1755351043806,-606.82160585,0.00021917,3]
[379631781,1755351043815,-462.1417622,0.00021917,3]
[379631783,1755351043824,-480.0,0.00021917,3]
[379631785,1755351043834,-481.71,0.00021917,3]
[379631787,1755351043843,-480.0,0.00021917,3]
[379631789,1755351043852,-480.0,0.00021917,3]
[379631791,1755351043861,-480.0,0.00021917,3]
[379631793,1755351043870,-953.43,0.00021917,3]
[379631795,1755351043879,-480.0,0.00021917,3]
[379631797,1755351043888,-480.0,0.00021917,3]
[379631799,1755351043898,-480.0,0.00021917,3]
[379631801,1755351043907,-480.0,0.00021917,3]
[379631803,1755351043916,-480.0,0.00021917,3]
[379631805,1755351043925,-480.0,0.00021917,3]
[379631807,1755351043935,-480.0,0.00021917,3]
[379631809,1755351043944,-480.0,0.00021917,3]
[379631811,1755351043953,-460.0,0.00021917,3]
[379631813,1755351043962,-480.0,0.00021917,3]
[379631815,1755351043972,-480.0,0.00021917,3]
[379631817,1755351043981,-480.0,0.00021917,3]
[379631819,1755351043991,-480.0,0.00021917,3]
[379631821,1755351044000,-480.0,0.00021917,3]
[379631823,1755351044009,-8833.01,0.00021917,3]
[379631825,1755351044017,-706.87,0.00021917,3]
[379631827,1755351044026,-480.0,0.00021917,3]
[379631829,1755351044036,-460.0,0.00021917,3]
[379631830,1755351044045,-460.0,0.00021917,3]
[379631832,1755351044054,-540.61,0.00021917,3]
[379631834,1755351044063,-480.0,0.00021917,3]
[379631836,1755351044072,-460.0,0.00021917,3]
[379631838,1755351044081,-5049.3,0.00021917,3]
[379631840,1755351044090,-480.0,0.00021917,3]
[379631842,1755351044099,-460.0,0.00021917,3]
[379631844,1755351044108,-1397.57,0.00021917,3]
[379631846,1755351044118,-480.0,0.00021917,3]
[379631848,1755351044127,-1085.19,0.00021917,3]
[379631850,1755351044136,-480.0,0.00021917,3]
[379631852,1755351044146,-615.97,0.00021917,3]
[379631854,1755351044157,-480.0,0.00021917,3]
[379631856,1755351044166,-480.0,0.00021917,3]
[379631858,1755351044176,-480.0,0.00021917,3]
[379631860,1755351044185,-480.0,0.00021917,3]
[379631862,1755351044195,-480.0,0.00021917,3]
[379631864,1755351044204,-497.64,0.00021917,3]
[379631866,1755351044214,-480.0,0.00021917,3]
[379631868,1755351044223,-480.0,0.00021917,2]
[379631870,1755351044234,-483.71013519,0.00021917,2]
[379631872,1755351044244,-480.0,0.00021917,3]
[379631874,1755351044253,-480.0,0.00021917,3]
[379631876,1755351044262,-480.0,0.00021917,3]
[379631878,1755351044272,-480.0,0.00021917,3]
[379631880,1755351044281,-480.0,0.00021917,3]
[379631882,1755351044290,-480.0,0.00021917,3]
[379631883,1755351044302,-480.0,0.00021917,3]
[379631885,1755351044311,-480.0,0.00021917,3]
[379631888,1755351044321,-480.0,0.00021917,3]
[379631889,1755351044331,-480.0,0.00021917,3]
[379631891,1755351044340,-542.93,0.00021917,3]
[379631893,1755351044349,-480.0,0.00021917,3]
[379631895,1755351044358,-480.0,0.00021917,3]
[379631897,1755351044368,-460.0,0.00021917,3]
[379631899,1755351044377,-153.0,0.00021918,2]
[379631901,1755351044386,-153.0,0.00021918,2]
[379631903,1755351044395,-153.0,0.00021918,2]
[379631905,1755351044405,-153.0,0.00021918,2]
[379631907,1755351044414,-153.0,0.00021918,2]
[379631909,1755351044423,-200.0,0.00021918,2]
[379631911,1755351044432,-228.476326,0.00021932,7]
[379631913,1755351044442,-228.476326,0.00021932,7]
[379631915,1755351044451,-151.0,0.00021932,7]
[379631917,1755351044460,-151.0,0.00021932,7]
[379631919,1755351044469,-1309.80957465,0.00021932,2]
[379631921,1755351044479,-500.0,0.00021945,2]
[379631923,1755351044487,-151.0,0.00021972,7]
[379631925,1755351044497,-2257.98,0.00021972,3]
[379631927,1755351044506,-2257.98,0.00021972,3]
[379631929,1755351044515,-2257.98,0.00021972,3]
[379631931,1755351044524,-2257.98,0.00021972,3]
[379631933,1755351044534,-2257.98,0.00021972,3]
[379631935,1755351044543,-2257.98,0.00021972,3]
[379631937,1755351044552,-2257.98,0.00021972,3]
[379631939,1755351044562,-2257.98,0.00021972,3]
[379631941,1755351044570,-2257.98,0.00021972,3]
[379631943,1755351044580,-2257.98,0.00021972,3]
[379631945,1755351044589,-2257.98,0.00021972,3]
[379631947,1755351044598,-2257.98,0.00021972,3]
[379631949,1755351044607,-2257.98,0.00021972,3]
[379631951,1755351044616,-2257.98,0.00021972,3]
[379631953,1755351044625,-2257.98,0.00021972,3]
[379631955,1755351044634,-2257.98,0.00021972,3]
[379631957,1755351044644,-2257.98,0.00021972,3]
[379631959,1755351044653,-2257.98,0.00021972,3]
[379631961,1755351044663,-2257.98,0.00021972,3]
[379631963,1755351044672,-2257.98,0.00021972,3]
[379631965,1755351044682,-2257.98,0.00021972,3]
[379631967,1755351044691,-2257.98,0.00021972,3]
[379631969,1755351044700,-2257.98,0.00021972,3]
[379631971,1755351044709,-2258.21279647,0.00021972,3]
[379631973,1755351044718,-500.0,0.00021973,2]
[379631975,1755351044727,-500.0,0.00021973,2]
[379631976,1755351044736,-601.07143356,0.00021973,2]
[379631978,1755351044746,-500.63349668,0.00021973,2]
[379631980,1755351044755,-500.0,0.00021973,2]
[379631982,1755351044764,-500.0,0.00021973,2]
[379631984,1755351044773,-500.0,0.00021973,2]
[379631986,1755351044783,-258.66738447,0.00021973,2]
[379631989,1755351044792,-160.1795047,0.00021973,2]
[379631990,1755351044802,-158.59369277,0.00021973,2]
[379631992,1755351044811,-158.59536301,0.00021973,2]
[379631994,1755351044820,-185.40567064,0.00021973,2]
[379631996,1755351044829,-500.0,0.00021973,2]
[379631999,1755351044839,-284.28935344,0.00021973,2]
[379632000,1755351044848,-247.38662679,0.00021973,2]
[379632002,1755351044857,-500.0,0.00021973,2]
[379632004,1755351044866,-500.0,0.00021973,2]
[379632007,1755351044877,-7868.68936927,0.00022,7]
[379632011,1755351044908,-353.72246964,0.00022,7]
[379632014,1755351044927,-718.77816109,0.00022,7]
[379632016,1755351044937,-228.476326,0.00022,7]
[379632018,1755351044946,-228.476326,0.00022,7]
[379632020,1755351044955,-151.0,0.00022,7]
[379632022,1755351044965,-151.0,0.00022,7]
[379632024,1755351044974,-164.0,0.00022,2]
[379632026,1755351044983,-167.65265805,0.00022,10]
[379632028,1755351044991,-462.1417622,0.00022,7]
[379632030,1755351045001,-163.651303,0.0002201,5]
[379632032,1755351045010,-819.90404912,0.00022091,2]
[379632034,1755351045019,-275.61,0.000221,2]
[379632036,1755351045029,-332.0,0.00022119,2]
[379632038,1755351045038,-500.0,0.00022173,2]
[379632040,1755351045048,-220.14342274,0.00022173,2]
[379632042,1755351045057,-500.0,0.00022173,2]
[379632044,1755351045066,-500.0,0.00022173,2]
[379632046,1755351045075,-500.0,0.00022173,2]
[379632048,1755351045085,-500.0,0.00022173,2]
[379632050,1755351045094,-500.0,0.00022173,2]
[379632052,1755351045104,-352.1250927,0.00022173,2]
[379632076,1755351045357,-169.0,0.00022,2]
[379632078,1755351045367,-147.8749073,0.00022173,2]
[379632081,1755351045377,-500.0,0.00022173,2]
[379632083,1755351045387,-500.0,0.00022173,2]
[379632085,1755351045397,-278.9250927,0.00022173,2]
[379632087,1755351045409,-221.0749073,0.00022173,2]
[379632089,1755351045419,-500.0,0.00022173,2]
[379632091,1755351045430,-500.0,0.00022173,2]
[379632093,1755351045439,-500.0,0.00022173,2]
[379632095,1755351045450,-500.0,0.00022173,2]
[379632097,1755351045461,-500.0,0.00022173,2]
[379632099,1755351045470,-500.0,0.00022173,2]
[379632101,1755351045480,-500.0,0.00022173,2]
[379632104,1755351045492,-521.75570288,0.00022173,2]
[379632106,1755351045501,-500.0,0.00022173,2]
[379632108,1755351045511,-168.86650105,0.00022173,2]
[379632110,1755351045520,-500.0,0.00022173,2]
[379632111,1755351045529,-1253.208302,0.00022173,7]
[379632113,1755351045538,-1253.208302,0.00022173,7]
[379632115,1755351045547,-163.651303,0.00022173,2]
[379632117,1755351045558,-36046.43620097,0.00022191,2]
[379632120,1755351045571,-1900.00029438,0.00022191,2]
[379632122,1755351045582,-870.6123134,0.00022191,2]
[379632124,1755351045598,-2156.44079756,0.00022191,2]
[379632126,1755351045609,-488.85332617,0.00022191,2]
[379632199,1755351046297,-3176.07003808,0.00022191,2]
[379632201,1755351046309,-5608.58192421,0.00022191,2]
[379632221,1755351046493,-1139.79,0.00021917,3]
[379632223,1755351046502,-35368.794233,0.00022191,2]
[379632226,1755351046514,-11889.0,0.00022191,2]
[379632228,1755351046525,-920.16,0.00022191,2]
[379632231,1755351046544,-1504.90947141,0.00022191,2]
[379632233,1755351046555,-1229.15696961,0.00022191,2]
[379632271,1755351046906,-1130.7999995,0.00022191,2]
[379632273,1755351046916,-4598.5638452,0.00022191,2]
[379634706,1755351117104,-500.0,0.00020273,2]
[379634707,1755351117135,-213.28,0.00020463,3]
[379634708,1755351117166,-639.86,0.00020463,3]
[379634709,1755351117195,-1093.72,0.00020472,2]
[379634711,1755351117347,-106.28,0.00020472,2]
[379634712,1755351117415,-4265.63687272,0.00020473,2]
[379634713,1755351117522,-5000.0,0.00020473,2]
[379634715,1755351117914,-5000.0,0.00020473,2]
[379634718,1755351118117,-5000.0,0.00020473,2]
[379634719,1755351118295,-5000.0,0.00020473,2]
[379634720,1755351118514,-5000.0,0.00020473,2]
[379634722,1755351118731,-5000.0,0.00020473,2]
[379634723,1755351118935,-5000.0,0.00020473,2]
[379634726,1755351119124,-5000.0,0.00020473,2]
[379634728,1755351119319,-5000.0,0.00020473,2]
[379634731,1755351119500,-5000.0,0.00020473,2]
[379634733,1755351119691,-5000.0,0.00020473,2]
[379634734,1755351119877,-5000.0,0.00020473,2]
[379634735,1755351120151,-5000.0,0.00020473,2]
[379634736,1755351120435,-5000.0,0.00020473,2]
[379634737,1755351120545,-5000.0,0.00020473,2]
[379634739,1755351120836,-5000.0,0.00020473,2]
[379634743,1755351121291,-5000.0,0.00020473,2]
[379634745,1755351121757,-5000.0,0.00020473,2]
[379634748,1755351122006,-5000.0,0.00020473,2]
[379634749,1755351122198,-5000.0,0.00020473,2]
[379634751,1755351122387,-5000.0,0.00020473,2]
[379634753,1755351122555,-5000.0,0.00020473,2]
[379634755,1755351122741,-5000.0,0.00020473,2]
[379634758,1755351122953,-5000.0,0.00020473,2]
[379634760,1755351123244,-5000.0,0.00020473,2]
[379634761,1755351123457,-5000.0,0.00020473,2]
[379634763,1755351123646,-300.0,0.00020472,2]
[379634764,1755351123681,-4400.0,0.00020473,2]
[379634765,1755351123830,-5000.0,0.00020473,2]
[379634795,1755351129813,-5000.0,0.00020473,2]
[379634796,1755351130015,-5000.0,0.00020473,2]
[379634838,1755351140807,-5000.0,0.00020473,2]
[379634840,1755351141008,-2097.49103986,0.00020473,2]
[379634841,1755351141039,-305.01792028,0.00020572,2]
[379634842,1755351141076,-194.98207972,0.00020572,2]
[379634844,1755351141363,-500.0,0.00020572,2]
[379634845,1755351141394,-500.0,0.00020572,2]
[379634846,1755351141423,-500.0,0.00020572,2]
[379634847,1755351141455,-500.0,0.00020572,2]
[379634848,1755351141485,-500.0,0.00020572,2]
[379634849,1755351141603,-500.0,0.00020572,2]
[379634850,1755351141634,-500.0,0.00020572,2]
[379634851,1755351141664,-225.56312091,0.00020572,2]
[379634852,1755351141694,-471.15494887,0.00020572,2]
[379634853,1755351141724,-500.0,0.00020572,2]
[379634854,1755351141754,-203.97086122,0.00020572,2]
[379634855,1755351141898,-500.0,0.00020572,2]
[379634856,1755351141926,-500.0,0.00020572,2]
[379634858,1755351141955,-500.0,0.00020572,2]
[379634859,1755351141984,-500.0,0.00020572,2]
[379634860,1755351142013,-500.0,0.00020572,2]
[379634861,1755351142149,-198.622138,0.00020572,2]
[379634868,1755351143541,-301.377862,0.00020572,2]
[379634869,1755351143571,-500.0,0.00020572,2]
[379634870,1755351143599,-477.85334,0.00020572,2]
[379634872,1755351143766,-265.17985577,0.00020572,2]
[379634873,1755351143796,-500.0,0.00020572,2]
[379634875,1755351143827,-411.17788446,0.00020572,2]
[379634877,1755351143915,-88.82211554,0.00020572,2]
[379634878,1755351143944,-500.0,0.00020572,2]
[379634879,1755351143974,-322.97703104,0.00020572,2]
[379634880,1755351144005,-489.34,0.00020888,2]
[379635006,1755351184779,1135.16829803,0.000199,2]
[379635007,1755351184897,1062.55340881,0.00020408,2]
[379635008,1755351184923,72.61488922,0.00020408,2]
[379635139,1755351220681,483.11,0.00020876,2]
[379635253,1755351289207,169.04797875,0.0002069,2]
[379635254,1755351326043,15135.0,0.00027711,60]
[379635256,1755351346053,500.0,0.00020273,2]
[379635257,1755351356199,1059.49041163,0.000199,2]
[379635258,1755351356274,1059.49041149,0.00020408,2]
[379635261,1755351445548,1000.0,0.00020677,2]
[379635262,1755351445768,656.24630891,0.00020677,2]
[379635263,1755351445791,343.75369109,0.00020677,2]
[379635264,1755351446115,1000.0,0.00020677,2]
[379635265,1755351446418,1000.0,0.00020677,2]
[379635266,1755351446611,1000.0,0.00020677,2]
[379635267,1755351446805,1000.0,0.0002,10]
[379635268,1755351446855,240.120184,0.00020689,2]
[379635270,1755351528791,416.12612491,0.000199,2]
[379635271,1755351528815,572.7315925,0.000199,2]
[379635272,1755351528874,988.85771739,0.00020408,2]
[379635276,1755351598594,1010.0,0.000276,120]
[379635282,1755351700653,922.93386968,0.000199,2]
[379635283,1755351700971,922.93386956,0.00020408,2]
[379635285,1755351772292,-476.96,0.00020905,2]
[379635286,1755351772324,-922.93386956,0.00020916,2]
[379635287,1755351772352,-157.3210001,0.00021269,2]
[379635288,1755351772382,-500.0,0.00021369,2]
[379635289,1755351772556,-922.93386956,0.00021424,2]
[379635290,1755351772586,-462.1417622,0.00021622,2]
[379635291,1755351772621,-528.38334358,0.00021622,2]
[379635292,1755351772653,-215.68093138,0.00021622,2]
[379635293,1755351772683,-65.92018656,0.00021715,3]
[379635294,1755351772839,-609.87981344,0.00021715,3]
[379635295,1755351772874,-1200.0,0.00021762,2]
[379635296,1755351772904,-300.0,0.00021762,2]
[379635297,1755351773662,-1716.87818674,0.00021763,2]
[379635298,1755351773800,-5000.0,0.00021763,2]
[379635299,1755351773958,-5000.0,0.00021763,2]
[379635300,1755351774175,-5000.0,0.00021763,2]
[379635301,1755351774406,-1631.69921293,0.00021763,2]
[379635302,1755351774435,-300.0,0.00021805,2]
[379635303,1755351774463,-300.0,0.00021806,2]
[379635304,1755351774491,-236.60157414,0.00021806,2]
[379635305,1755351774568,-63.39842586,0.00021806,2]
[379635306,1755351774600,-426.56,0.00021807,3]
[379635307,1755351774630,-171.44079204,0.00021816,2]
[379635308,1755351774661,-497.53926,0.00021816,2]
[379635309,1755351774689,-505.39335022,0.00021816,2]
[379635310,1755351775111,-1798.13319548,0.00021817,2]
[379635311,1755351775178,-5000.0,0.00021817,2]
[379635312,1755351775196,-5000.0,0.00021817,2]
[379635313,1755351775354,-5000.0,0.00021817,2]
[379635314,1755351775532,-5000.0,0.00021817,2]
[379635315,1755351775718,-5000.0,0.00021817,2]
[379635316,1755351775943,-5000.0,0.00021817,2]
[379635317,1755351776136,-5000.0,0.00021817,2]
[379635318,1755351776335,-5000.0,0.00021817,2]
[379635319,1755351776527,-5000.0,0.00021817,2]
[379635320,1755351776722,-5000.0,0.00021817,2]
[379635321,1755351776935,-5000.0,0.00021817,2]
[379635322,1755351777122,-5000.0,0.00021817,2]
[379635323,1755351777336,-5000.0,0.00021817,2]
[379635324,1755351777530,-5000.0,0.00021817,2]
[379635325,1755351777824,-5000.0,0.00021817,2]
[379635326,1755351778021,-5000.0,0.00021817,2]
[379635327,1755351778316,-5000.0,0.00021817,2]
[379635328,1755351778514,-5000.0,0.00021817,2]
[379635329,1755351778720,-5000.0,0.00021817,2]
[379635330,1755351778939,-5000.0,0.00021817,2]
[379635331,1755351779105,-5000.0,0.00021817,2]
[379635332,1755351779272,-5000.0,0.00021817,2]
[379635333,1755351779500,-5000.0,0.00021817,2]
[379635334,1755351779808,-5000.0,0.00021817,2]
[379635335,1755351779977,-5000.0,0.00021817,2]
[379635336,1755351780165,-5000.0,0.00021817,2]
[379635337,1755351780354,-5000.0,0.00021817,2]
[379635338,1755351780576,-5000.0,0.00021817,2]
[379635339,1755351780764,-5000.0,0.00021817,2]
[379635340,1755351780996,-5000.0,0.00021817,2]
[379635341,1755351781206,-5000.0,0.00021817,2]
[379635342,1755351781495,-5000.0,0.00021817,2]
[379635343,1755351781942,-5000.0,0.00021817,2]
[379635344,1755351782157,-1865.06037554,0.00021817,2]
[379635345,1755351782185,-269.87924892,0.00021817,2]
[379635346,1755351782237,-730.12075108,0.00021817,2]
[379635347,1755351785518,1629.43884656,0.00021717,2]
[379635348,1755351801805,3370.56115344,0.00021817,2]
[379635349,1755351801827,1629.43884656,0.00021817,2]
[379635350,1755351811428,3370.56115344,0.00021817,2]
[379635351,1755351811452,1629.43884656,0.00021817,2]
[379635352,1755351822666,-321.5217936,0.00021863,2]
[379635353,1755351822695,-160.7608968,0.00021863,2]
[379635354,1755351822724,-160.7608968,0.00021863,2]
[379635355,1755351822753,-160.7608968,0.00021863,2]
[379635356,1755351822783,-160.7608968,0.00021863,2]
[379635357,1755351822812,-160.7608968,0.00021863,2]
[379635358,1755351822851,-160.7608968,0.00021863,2]
[379635359,1755351822896,-160.7608968,0.00021863,2]
[379635360,1755351822930,-500.0,0.00021873,2]
[379635361,1755351822957,-500.0,0.00021873,2]
[379635362,1755351823130,-2257.98,0.0002189,2]
[379635363,1755351823247,-2257.98,0.0002189,2]
[379635364,1755351823428,-2257.98,0.0002189,2]
[379635365,1755351823569,-2257.98,0.0002189,2]
[379635366,1755351823707,-2257.98,0.0002189,2]
[379635367,1755351823949,-2257.98,0.0002189,2]
[379635368,1755351824071,-2257.98,0.0002189,2]
[379635369,1755351824332,-2257.98,0.0002189,2]
[379635370,1755351824571,-2257.98,0.0002189,2]
[379635371,1755351824779,-2257.98,0.0002189,2]
[379635372,1755351824990,-2257.98,0.0002189,2]
[379635373,1755351825235,-2257.98,0.0002189,2]
[379635374,1755351825477,-2257.98,0.0002189,2]
[379635375,1755351825679,-2257.98,0.0002189,2]
[379635376,1755351826112,-2257.98,0.0002189,2]
[379635377,1755351826517,-2257.98,0.0002189,2]
[379635378,1755351826635,-2257.98,0.0002189,2]
[379635379,1755351826857,-2257.98,0.0002189,2]
[379635380,1755351827050,-2257.98,0.0002189,2]
[379635381,1755351827228,-2257.98,0.0002189,2]
[379635382,1755351827433,-2257.98,0.0002189,2]
[379635383,1755351827664,-2257.98,0.0002189,2]
[379635384,1755351827817,-2257.98,0.0002189,2]
[379635385,1755351828025,-2258.21279647,0.0002189,2]
[379635386,1755351828287,-160.7608968,0.000219,2]
[379635387,1755351828318,-1.29171666,0.000219,2]
[379635388,1755351828416,-159.46918014,0.000219,2]
[379635389,1755351828446,-321.5217936,0.000219,2]
[379635390,1755351828477,-170.197355,0.00021907,10]
[379635391,1755351828507,-460.02790009,0.00021917,3]
[379635392,1755351828537,-480.0,0.00021917,3]
[379635393,1755351828567,-477.78904969,0.00021917,3]
[379635394,1755351828596,-381.98944296,0.00021917,3]
[379635395,1755351828626,470.89,0.00020884,2]
[379635396,1755351828691,-98.01055704,0.00021917,3]
[379635397,1755351828720,-480.0,0.00021917,3]
[379635398,1755351828749,-420.0,0.00021917,3]
[379635399,1755351828777,-480.0,0.00021917,3]
[379635400,1755351828806,-480.0,0.00021917,3]
[379635401,1755351828838,-204.83628529,0.00021917,3]
[379635402,1755351828867,-194.30631534,0.00021917,3]
[379635403,1755351829061,-285.69368466,0.00021917,3]
[379635404,1755351829091,-480.0,0.00021917,3]
[379635405,1755351829120,-480.0,0.00021917,3]
[379635406,1755351829150,-500.0,0.00021917,3]
[379635407,1755351829179,-500.0,0.00021917,3]
[379635408,1755351829208,-8.61263068,0.00021917,3]
[379635409,1755351829335,2899.67115344,0.00021817,2]
[379635410,1755351829359,2100.32884656,0.00021817,2]
[379635411,1755351829392,-491.38736932,0.00021917,3]
[379635412,1755351829422,-500.0,0.00021917,3]
[379635413,1755351829451,-480.0,0.00021917,3]
[379635414,1755351829481,-500.0,0.00021917,3]
[379635415,1755351829510,-500.0,0.00021917,3]
[379635416,1755351829613,-500.0,0.00021917,3]
[379635417,1755351829641,-500.0,0.00021917,3]
[379635418,1755351829669,-500.0,0.00021917,3]
[379635419,1755351829697,-500.0,0.00021917,3]
[379635420,1755351829725,-460.0,0.00021917,3]
[379635421,1755351829874,-500.0,0.00021917,3]
[379635422,1755351829903,-500.0,0.00021917,3]
[379635423,1755351829934,-500.0,0.00021917,3]
[379635424,1755351829963,-500.0,0.00021917,3]
[379635425,1755351829991,-500.0,0.00021917,3]
[379635426,1755351830061,-500.0,0.00021917,3]
[379635427,1755351830089,-500.0,0.00021917,3]
[379635428,1755351830117,-161.55,0.00021917,3]
[379635429,1755351830145,-480.0,0.00021917,3]
[379635430,1755351830174,-480.0,0.00021917,3]
[379635431,1755351830204,-296.9,0.00021917,3]
[379635432,1755351830416,-163.1,0.00021917,3]
[379635433,1755351830444,-460.0,0.00021917,3]
[379635434,1755351830473,-480.0,0.00021917,3]
[379635435,1755351830501,-480.0,0.00021917,3]
[379635436,1755351830528,-461.60974076,0.00021917,3]
[379635437,1755351830555,-430.58051848,0.00021917,3]
[379635438,1755351830902,-49.41948152,0.00021917,3]
[379635439,1755351830932,-480.0,0.00021917,3]
[379635440,1755351830959,-480.0,0.00021917,3]
[379635441,1755351830989,-480.0,0.00021917,3]
[379635442,1755351831018,-480.0,0.00021917,3]
[379635443,1755351831048,-480.0,0.00021917,3]
[379635444,1755351831242,-461.70575592,0.00021917,3]
[379635445,1755351831270,-480.0,0.00021917,3]
[379635446,1755351831299,-480.0,0.00021917,3]
[379635447,1755351831329,-480.0,0.00021917,3]
[379635448,1755351831358,-480.0,0.00021917,3]
[379635449,1755351831560,-480.0,0.00021917,3]
[379635450,1755351831588,-1523.26,0.00021917,3]
[379635451,1755351831616,-365.12489285,0.00021917,3]